lending/lending_fUSD_20241103
["ID","MTS","AMOUNT","RATE_DAILY","PERIOD"]
[341217899,1730669440413,-234.02,0.00023881,2]
[341217900,1730669440424,-234.02,0.00023893,2]
[341217901,1730669440434,-234.02,0.00023906,2]
[341217902,1730669440445,-234.02,0.00023918,2]
[341217903,1730669440456,-406.33918522,0.00023922,2]
[341217904,1730669440467,-234.02,0.00023931,2]
[341217905,1730669440478,-234.02,0.00023943,2]
[341217906,1730669440489,-392.31694488,0.00023946,2]
[341217907,1730669440498,-234.02,0.00023956,2]
[341217908,1730669440510,-234.02,0.00023968,2]
[341217909,1730669440520,-234.02,0.00023981,2]
[341217910,1730669440531,-234.02,0.00023993,2]
[341217911,1730669440541,-234.02,0.00024006,2]
[341217912,1730669440552,-234.02,0.00024018,2]
[341217913,1730669440561,-234.02,0.00024031,2]
[341217914,1730669440572,-66.43639259,0.00024091,2]
[341217915,1730669440586,-293.56360741,0.00024091,2]
[341217916,1730669440595,-245.93,0.00024137,2]
[341217917,1730669440610,-190.08,0.00024173,2]
[341217918,1730669440619,-150.0,0.00024222,2]
[341217919,1730669440628,-151.27605965,0.00024233,2]
[341217920,1730669440638,-512.85536455,0.00024233,2]
[341217921,1730669440647,-1230.01645671,0.0002425,2]
[341217922,1730669440658,-337.00996882,0.0002442,2]
[341217923,1730669440669,-16754.26997764,0.0002445,2]
[341217924,1730669440680,-3401.9693261,0.000245,2]
[341217925,1730669440690,-6520.09,0.00024658,2]
[341217926,1730669440701,-166.6,0.00024743,2]
[341217927,1730669440711,-17295.72000001,0.000248,2]
[341217928,1730669440721,-525.41753667,0.000249,2]
[341217929,1730669440730,-500.0,0.00024999,2]
[341217930,1730669440740,-352.74531758,0.00024999,2]
[341217931,1730669440751,-1738.86713872,0.00025,2]
[341217932,1730669440761,-2896.1286366,0.00025,2]
[341217933,1730669440775,-486.27526099,0.00025,2]
[341217934,1730669440785,-350.0,0.00025,2]
[341217935,1730669440796,-151.0,0.00025,7]
[341217936,1730669440806,-151.0,0.00025,7]
[341217937,1730669440816,-151.0,0.00025,7]
[341217938,1730669440826,-115908.62307225,0.00025,2]
[341217939,1730669440835,-21853.0395418,0.00025,2]
[341217940,1730669440844,-635.957172,0.00025,7]
[341217941,1730669440854,-635.957172,0.00025,7]
[341217942,1730669440863,-151.0,0.00025,7]
[341217943,1730669440871,-151.0,0.00025,7]
[341217944,1730669440881,-154.160796,0.00025,7]
[341217945,1730669440890,-151.0,0.00025,7]
[341217946,1730669440899,-151.0,0.00025,7]
[341217947,1730669440908,-151.0,0.00025,7]
[341217948,1730669440916,-151.0,0.00025,7]
[341217949,1730669440926,-3218.28597462,0.000251,2]
[341217950,1730669440936,-200.0,0.000253,10]
[341217951,1730669440945,-184.91,0.00025384,2]
[341217952,1730669440954,-151.0,0.00025422,7]
[341217953,1730669440963,-824.18,0.0002546,2]
[341217954,1730669440972,-170.18,0.00025635,2]
[341217955,1730669440981,-640.0,0.00025919,2]
[341217956,1730669440991,-167.20694287,0.0002594,2]
[341217957,1730669441000,-4303.11223117,0.00026,2]
[341217958,1730669441010,-4433.65,0.00026,2]
[341217959,1730669441019,-517.89408053,0.0002604,2]
[341217960,1730669441028,-151.0,0.00026098,7]
[341217961,1730669441037,-151.0,0.00026098,7]
[341217962,1730669441047,-151.0,0.00026098,7]
[341217963,1730669441057,-151.0,0.000264,7]
[341217964,1730669441068,-16847.11092401,0.000264,2]
[341217965,1730669441077,-165.366615,0.000264,7]
[341217966,1730669441087,-151.0,0.000264,7]
[341217967,1730669441096,-165.366615,0.000264,7]
[341217968,1730669441106,-168.79737,0.000264,7]
[341217969,1730669441115,-151.0,0.000264,7]
[341217970,1730669441124,-151.0,0.000264,7]
[341217971,1730669441133,-166.904593,0.000264,7]
[341217972,1730669441142,-151.0,0.000264,7]
[341217973,1730669441151,-439.0,0.000268,2]
[341217974,1730669441162,-2033.0,0.000268,2]
[341217975,1730669441171,-11156.28278081,0.00027,2]
[341217976,1730669441180,-409.90566508,0.00027,2]
[341217977,1730669441190,-3000.0,0.00027,2]
[341217978,1730669441199,-984.52776924,0.00027,2]
[341217979,1730669441209,-400.0,0.00027,2]
[341217980,1730669441219,-635.957172,0.00027,7]
[341217981,1730669441230,-635.957172,0.00027,7]
[341217982,1730669441240,-525.41753659,0.00027011,2]
[341217983,1730669441250,-360.0,0.00027103,2]
[341217984,1730669441259,-150.0,0.00027397,7]
[341217985,1730669441268,-196.39,0.00027397,10]
[341217986,1730669441278,-374.49,0.00027397,10]
[341217987,1730669441289,-191.23762524,0.000275,2]
[341217988,1730669441299,-13405.68294719,0.000275,2]
[341217989,1730669441309,-151.0,0.000275,7]
[341217990,1730669441320,-151.0,0.000275,7]
[341217991,1730669441331,-151.0,0.000275,7]
[341217992,1730669441341,-219.14932,0.000275,7]
[341217993,1730669441350,-924.0,0.00027521,5]
[341217994,1730669441360,-184.91,0.00027691,2]
[341217995,1730669441371,-824.18,0.00027724,2]
[341217996,1730669441381,-3376.10733325,0.00028,2]
[341217997,1730669441392,-151.0,0.00028,7]
[341217998,1730669441402,-165.366615,0.00028,7]
[341217999,1730669441413,-165.366615,0.00028,7]
[341218000,1730669441422,-151.0,0.00028,7]
[341218001,1730669441432,-151.0,0.00028,7]
[341218002,1730669441441,-151.0,0.00028244,7]
[341218003,1730669441452,-151.0,0.00028244,7]
[341218004,1730669441463,-159.93894566,0.00028362,5]
[341218005,1730669441474,-500.0,0.00028457,2]
[341218006,1730669441483,-402.67770638,0.00028457,5]
[341218007,1730669441493,-608.23015029,0.00028493,5]
[341218008,1730669441504,-640.0,0.00028799,2]
[341218009,1730669441515,-155.97,0.00028858,2]
[341218010,1730669441526,-940.0,0.00028969,5]
[341218011,1730669441537,-1000.0,0.00029,3]
[341218012,1730669441547,-450.0,0.00029,2]
[341218013,1730669441556,-525.41753659,0.00029122,15]
[341218014,1730669441566,-163.33,0.00029364,2]
[341218015,1730669441575,-163.33,0.00029658,2]
[341218016,1730669441585,-20960.21365728,0.000297,2]
[341218017,1730669441606,-406.24944498,0.000297,2]
[341218024,1730669445695,-426.31964775,0.00020832,2]
[341218025,1730669445705,-399.82770227,0.0002409,2]
[341218026,1730669445714,-312.08,0.00027397,10]
[341218027,1730669445724,-5707.49397346,0.000297,2]
[341218028,1730669445735,-6931.4,0.000297,2]
[341218029,1730669445810,-4118.64292428,0.000297,2]
[341218030,1730669445820,-151.0,0.000297,7]
[341218031,1730669445830,-151.0,0.000297,7]
[341218032,1730669445839,-1000.0,0.00029827,2]
[341218033,1730669445849,-663.22798053,0.00029873,2]
[341218034,1730669445859,-635.957172,0.00029899,7]
[341218035,1730669445869,-635.957172,0.00029899,7]
[341218036,1730669445878,-3464.92919119,0.000299,2]
[341218037,1730669445889,-3467.55,0.000299,2]
[341218038,1730669445925,-20022.58381246,0.000299,2]
[341218039,1730669445936,-505.48224013,0.00029973,5]
[341218040,1730669445946,-824.18,0.00029988,2]
[341218041,1730669446106,-225.95803786,0.0002999,2]
[341218042,1730669446117,-223.86020532,0.0002999,2]
[341218043,1730669446127,-20200.77113984,0.0003,2]
[341218065,1730669916434,157.77,0.00015342,2]
[341218130,1730670638019,-150.0,0.00018107,2]
[341218131,1730670638028,-1796.3943,0.000207,2]
[341218132,1730670638038,-250.0,0.00021,2]
[341218133,1730670638050,-300.0,0.00023,2]
[341218134,1730670638059,-350.0,0.00025,2]
[341218135,1730670638069,-618.13,0.00025979,2]
[341218136,1730670638078,-150.0,0.00026986,2]
[341218137,1730670638088,-400.0,0.00027,2]
[341218138,1730670638098,-212.62,0.00027298,2]
[341218139,1730670638107,-629.3,0.00027298,2]
[341218140,1730670638116,-744.0,0.00027576,2]
[341218141,1730670638126,-250.0,0.00027657,2]
[341218142,1730670638135,-150.0,0.00027703,7]
[341218143,1730670638145,-16583.59,0.00027709,2]
[341218144,1730670638154,-250.0,0.00027734,2]
[341218145,1730670638164,-200.0,0.00027751,2]
[341218146,1730670638174,-230.62,0.00027791,2]
[341218147,1730670638183,-413.19,0.00027913,2]
[341218148,1730670638192,-170.58,0.00027991,30]
[341218149,1730670638202,-256.0,0.00028028,2]
[341218150,1730670638212,-618.13,0.00028243,2]
[341218151,1730670638222,-160.39,0.00028401,2]
[341218152,1730670638231,-275.14,0.00028511,120]
[341218153,1730670638240,-398.319,0.00028848,21]
[341218154,1730670638249,-168.992,0.00028848,21]
[341218155,1730670638260,-450.0,0.00029,2]
[341218156,1730670638270,-878.645529,0.000299,2]
[341218157,1730670638280,-421.28837198,0.000299,15]
[341218158,1730670638290,-1255.04180702,0.000299,2]
[341218159,1730670638299,-167.20694287,0.000299,2]
[341218160,1730670638309,-500.0,0.00029973,2]
[341218161,1730670638319,-260.07,0.0002999,10]
[341218162,1730670638328,-216.03724806,0.0002999,2]
[341218163,1730670638338,-427.37947046,0.00029999,2]
[341218164,1730670638347,-644.36275998,0.00029999,2]
[341218165,1730670638356,-448.33219535,0.00029999,2]
[341218166,1730670638366,-85505.9566841,0.0003,2]
[341218167,1730670638382,-691.87,0.0003,2]
[341218186,1730670640189,-691.36,0.0003,2]
[341218192,1730670643103,-505763.81232946,0.0003,2]
[341218206,1730670645908,-356.14955872,0.00029999,2]
[341218207,1730670645918,-3360.00096128,0.0003,2]
[341218208,1730670646238,-482.83028589,0.0003,2]
[341218211,1730670937858,156.81,0.00015342,2]
[341218214,1730671459487,-300.0,0.00019725,2]
[341218270,1730671832232,-250.0,0.00021,2]
[341218271,1730671832244,-300.0,0.00023,2]
[341218272,1730671832257,-350.0,0.00025,2]
[341218273,1730671832269,-1989.0,0.000268,2]
[341218274,1730671832279,-400.0,0.00027,2]
[341218275,1730671832290,-582.85,0.00027396,2]
[341218276,1730671832301,-808.710251,0.0002861,2]
[341218277,1730671832312,-206.59,0.00028754,2]
[341218278,1730671832323,-1682.66345333,0.00028877,2]
[341218285,1730671838485,-7100.51654667,0.00028877,2]
[341218287,1730671838495,-170.58,0.00028899,30]
[341218289,1730671838504,-130.91922223,0.00028926,2]
[341218357,1730671840399,-119.08077777,0.00028926,2]
[341218358,1730671840408,-289.53521646,0.00029,2]
[341218372,1730671846325,-3750.0159,0.00028777,2]
[341218373,1730671846338,-160.46478354,0.00029,2]
[341218374,1730671846351,-250.0,0.00029016,2]
[341218375,1730671846363,-150.0,0.00029081,7]
[341218376,1730671846374,-582.85,0.0002966,2]
[341218377,1730671846386,-158.524,0.0002979,2]
[341218378,1730671846397,-167.20694287,0.00029822,2]
[341218379,1730671846409,-404.8,0.00029851,2]
[341218380,1730671846421,-216.72,0.0002989,10]
[341218381,1730671846433,-180.6,0.0002989,10]
[341218382,1730671846444,-451.05393198,0.00029899,2]
[341218383,1730671846456,-549.93560596,0.000299,2]
[341218384,1730671846468,-549.93560596,0.000299,2]
[341218385,1730671846480,-4696.42951885,0.000299,2]
[341218388,1730672049105,250.0,0.00025,120]
[341218389,1730672197195,250.91,0.00025,30]
[341218390,1730672240183,155.97,0.00015342,2]
[341218391,1730672708548,59844.03,0.00016,2]
[341218392,1730672708571,20000.0,0.00016,2]
[341218393,1730672708593,1000.0,0.00016,2]
[341218394,1730672708615,1000.0,0.00016,2]
[341218395,1730672708636,1000.0,0.00016,2]
[341218396,1730672708659,1000.0,0.00016,2]
[341218397,1730672708680,1000.0,0.00016,2]
[341218398,1730672708702,1000.0,0.00016,2]
[341218399,1730672708726,2884.01,0.00016,2]
[341218400,1730672708751,249293.8152065,0.00016,2]
[341218403,1730672724091,156.42,0.00015342,2]
[341218469,1730672874055,153.95859072,0.00025,120]
[341218499,1730673032259,-370.45425451,0.000269,2]
[341218500,1730673032342,-46.54574549,0.000269,2]
[341218501,1730673032353,-538.31,0.00027268,2]
[341218502,1730673032364,-216.87,0.00027308,2]
[341218503,1730673032377,-284.48692005,0.0002736,120]
[341218504,1730673032387,-372.15733446,0.00028245,2]
[341218505,1730673038331,-257.82237684,0.00028245,2]
[341218506,1730673038342,-2374.2380031,0.00028245,2]
[341218507,1730673038351,-192.14,0.00028245,2]
[341218508,1730673038361,-206.59,0.00028572,2]
[341218509,1730673038370,-1000.0,0.00028572,2]
[341218510,1730673038379,-192.14,0.00028699,2]
[341218511,1730673038388,-250.0,0.00028706,2]
[341218512,1730673038397,-150.99,0.00028706,2]
[341218513,1730673038407,-170.58,0.00028831,30]
[341218514,1730673038416,-6236.66,0.00028964,2]
[341218515,1730673038425,-150.0,0.0002907,7]
[341218516,1730673038434,-192.14,0.00029153,2]
[341218517,1730673038443,-190.08,0.00029351,2]
[341218518,1730673038452,-641.55,0.00029589,2]
[341218519,1730673038462,-192.14,0.00029607,2]
[341218520,1730673038471,-697.95,0.00029697,2]
[341218521,1730673038480,-25606.8471,0.000297,2]
[341218522,1730673038490,-379.1595348,0.000297,15]
[341218523,1730673038499,-450.0,0.00029786,2]
[341218524,1730673038509,-150.5,0.00029787,10]
[341218525,1730673038518,-752.53,0.00029787,10]
[341218526,1730673038527,-87385.36938126,0.00029797,2]
[341218527,1730673038536,-354.28,0.00029799,24]
[341218528,1730673038545,-168.99205682,0.00029799,24]
[341218529,1730673038554,-315.73775239,0.00029799,2]
[341218530,1730673038564,-3463.4004,0.000298,2]
[341218531,1730673038573,-5711.0599,0.000298,2]
[341218532,1730673038582,-198.0375,0.000298,2]
[341218533,1730673038591,-2809.1521,0.000298,2]
[341218534,1730673038600,-2042.4565,0.000298,2]
[341218535,1730673038609,-1473.1738,0.000298,2]
[341218536,1730673038619,-28999.6546,0.000298,2]
[341218537,1730673038628,-3548.9615,0.000298,2]
[341218538,1730673038637,-572.8108,0.000298,2]
[341218539,1730673038647,-14282.8691,0.000298,2]
[341218540,1730673038656,-1000.0,0.000298,2]
[341218541,1730673038669,-1000.0,0.000298,2]
[341218542,1730673038678,-2500.0,0.000298,2]
[341218543,1730673038687,-661.46830902,0.00029873,2]
[341218544,1730673038696,-167.20694287,0.00029873,2]
[341218545,1730673038706,-214.15680515,0.0002989,2]
[341218546,1730673038715,-134708.8413165,0.000299,2]
[341218547,1730673038747,-21967.231667,0.000299,2]
[341218548,1730673038758,-27917.62949166,0.000299,2]
[341218554,1730673040179,-56863.96100063,0.000299,2]
[341218555,1730673040194,-12779.22619937,0.000299,2]
[341218556,1730673040206,-472.83497445,0.000299,2]
[341218557,1730673040288,-179318.47343154,0.000299,2]
[341218558,1730673040299,-500.0,0.00029973,5]
[341218559,1730673040309,-500.0,0.00029973,2]
[341218560,1730673040320,-533.1,0.0002999,2]
[341218561,1730673040331,-296.79129893,0.00029999,2]
[341218562,1730673040342,-612467.09803902,0.0003,2]
[341218563,1730673040365,-844.30242009,0.0003,2]
[341218564,1730673040510,-32071.17547164,0.0003,2]
[341218565,1730673040593,-17354.72980896,0.0003,2]
[341218566,1730673040604,-1460.04203268,0.0003,2]
[341218567,1730673040670,-1163.80815268,0.0003,2]
[341218576,1730673044501,-3287.0,0.0003,2]
[341218597,1730673044726,-390.00472727,0.0003,2]
[341218599,1730673044738,-817.1,0.0003,2]
[341218601,1730673044751,-759.1,0.0003,2]
[341218605,1730673044808,-8355.46898233,0.0003,2]
[341218634,1730673518210,150.0,0.00016,2]
[341218635,1730673710611,133728.87020889,0.0002,120]
[341218636,1730673710643,98690.01,0.0002,120]
[341218637,1730673710678,10000.0,0.0002,120]
[341218638,1730673710715,60000.0,0.0002,120]
[341218639,1730673710765,1715215.72994273,0.0002,120]
[341218642,1730673769416,156.9,0.00015342,2]
[341218731,1730674232598,-250.0,0.00021,2]
[341218732,1730674232610,-300.0,0.00023,2]
[341218733,1730674232621,-350.0,0.00025,2]
[341218734,1730674232632,-561.04,0.00026582,2]
[341218735,1730674232642,-400.0,0.00027,2]
[341218736,1730674232654,-153.71,0.00027705,2]
[341218737,1730674232663,-1874.15,0.00028368,2]
[341218738,1730674232672,-153.71,0.00028484,2]
[341218739,1730674232681,-800.0,0.00028552,2]
[341218740,1730674232690,-155.62,0.00028632,2]
[341218741,1730674232699,-571.3,0.00028639,2]
[341218742,1730674232708,-150.0,0.00028674,7]
[341218743,1730674232717,-250.0,0.0002871,2]
[341218744,1730674232726,-561.04,0.00028846,2]
[341218745,1730674232735,-170.58,0.00028858,30]
[341218746,1730674232744,-200.0,0.00028971,2]
[341218747,1730674232753,-450.0,0.00029,2]
[341218748,1730674232762,-153.71,0.00029263,2]
[341218749,1730674232771,-797.7713,0.000298,2]
[341218750,1730674232781,-341.24358132,0.000298,15]
[341218751,1730674232790,-2500.0,0.000298,2]
[341218752,1730674232799,-221.01642667,0.00029899,2]
[341218753,1730674232808,-1000.0,0.000299,2]
[341218754,1730674232817,-486.0334,0.000299,2]
[341218755,1730674232826,-589.32763014,0.000299,2]
[341218756,1730674232838,-1969.74987323,0.000299,2]
[341218757,1730674232849,-499.34874343,0.000299,2]
[341218758,1730674232864,-520.41993916,0.000299,2]
[341218902,1730674240548,-150.0,0.00018107,2]
[341218904,1730674240558,-219.52992,0.000299,2]
[341218931,1730674240805,-1311.8,0.000299,2]
[341219697,1730674249989,155.92,0.00015342,2]
[341219748,1730675431522,-250.0,0.00021,2]
[341219750,1730675431531,-300.0,0.00023,2]
[341219752,1730675431541,-350.0,0.00025,2]
[341219753,1730675431550,-546.01,0.0002667,2]
[341219755,1730675431559,-400.0,0.00027,2]
[341219757,1730675431567,-1511.006221,0.000271,2]
[341219814,1730675437790,-1940.28632332,0.00021869,2]
[341219815,1730675437799,-278.993779,0.000271,2]
[341219816,1730675437808,-153.71,0.00027991,2]
[341219817,1730675437817,-159.41,0.00028421,2]
[341219818,1730675437827,-9228.32192361,0.0002849,2]
[341219819,1730675437838,-12137.51395799,0.0002849,2]
[341219820,1730675437893,-2524.1641184,0.0002849,2]
[341219821,1730675437902,-250.0,0.00028621,2]
[341219822,1730675437911,-285.65,0.00028719,2]
[341219823,1730675437921,-170.58,0.00028879,30]
[341219824,1730675437930,-546.01,0.00028934,2]
[341219825,1730675437940,-282.472,0.00029,2]
[341219826,1730675437950,-450.0,0.00029,2]
[341219827,1730675437960,-150.0,0.00029149,7]
[341219828,1730675437968,-640.0,0.00029292,2]
[341219830,1730675437978,-360.0,0.00029439,2]
[341219831,1730675437987,-13858.83953571,0.000297,2]
[341219849,1730675439560,-1915.43210232,0.000297,2]
[341219850,1730675439570,-4952.76789768,0.000297,2]
[341219851,1730675439603,-1015.86907696,0.000297,2]
[341219852,1730675439806,-251.11275001,0.000297,2]
[341219855,1730675443526,-5034.77916345,0.000297,2]
[341219859,1730675445798,-763.81909042,0.000297,2]
[341219860,1730675445809,-1718.8,0.000297,2]
[341219865,1730675512513,156.34,0.00015342,2]
[341219871,1730676064465,156.42,0.00015342,2]
[341219872,1730676308719,759504.04059851,0.00016,2]
[341219877,1730676393300,510.47048576,0.00015,2]
[341219887,1730676484854,239516.80891573,0.00015,2]
[341219888,1730676484880,174551.35781446,0.00015,2]
[341219924,1730676631881,-2053.34163273,0.0001892,2]
[341219925,1730676631891,-300.0,0.00019725,2]
[341219926,1730676631900,-52.51621704,0.00021484,2]
[341219927,1730676631911,-367.48378296,0.00021484,2]
[341219928,1730676631921,-658.28005769,0.000232,2]
[341219929,1730676631931,-121.23959399,0.00023922,2]
[341219930,1730676631943,-1947.2218158,0.00023922,2]
[341219931,1730676631956,-2616.58799259,0.00023922,2]
[341219932,1730676631969,-1346.4689072,0.00023922,2]
[341219933,1730676631980,-1263.4724689,0.00023922,2]
[341219953,1730676637799,-6751.11460843,0.00023922,2]
[341219954,1730676637811,-3060.84204934,0.00023922,2]
[341219955,1730676637823,-1346.14314948,0.00023922,2]
[341219956,1730676637834,-600.0,0.00023922,2]
[341219957,1730676637845,-9942.65446784,0.00023922,2]
[341219958,1730676637855,-647.00694186,0.00023922,2]
[341219959,1730676637866,-529.23868653,0.00024728,2]
[341219960,1730676637876,-3088.97555386,0.00025,2]
[341219961,1730676637886,-725.66,0.00025,2]
[341219962,1730676637897,-421.32065725,0.000264,2]
[341219963,1730676637907,-578.49,0.00026892,2]
[341219964,1730676637917,-420.0,0.000271,2]
[341219965,1730676637926,-158.622,0.000278,120]
[341219966,1730676637936,-285.65,0.00027885,2]
[341219967,1730676637945,-488.0,0.0002792,2]
[341219968,1730676637955,-153.71,0.00028062,2]
[341219969,1730676637964,-250.0,0.0002854,2]
[341219970,1730676637973,-158.54,0.0002858,14]
[341219971,1730676637984,-171.54,0.00028791,2]
[341219972,1730676637994,-996.0,0.000288,2]
[341219973,1730676638004,-8196.96393334,0.00028801,2]
[341219974,1730676638015,-534.4333347,0.00028801,2]
[341219975,1730676638030,-2132.93456888,0.00028801,2]
[341219976,1730676638044,-2000.89747,0.00028801,2]
[341219977,1730676638066,-4631.44069308,0.00028801,2]
[341219978,1730676638076,-250.0,0.00028816,2]
[341219979,1730676638085,-512.0,0.00028828,2]
[341219980,1730676638094,-625.64554776,0.00028953,2]
[341219981,1730676638104,-578.49,0.00029156,2]
[341219982,1730676638113,-159.012,0.0002936,14]
[341219983,1730676638122,-625.64554777,0.000296,2]
[341219984,1730676638131,-219.5299,0.00029619,2]
[341219985,1730676638141,-167.20694287,0.00029622,2]
[341219986,1730676638150,-370.94375487,0.00029622,15]
[341219987,1730676638159,-344.144,0.00029697,23]
[341219988,1730676638168,-154.71149867,0.00029699,2]
[341219989,1730676638177,-100000.0,0.000297,2]
[341219990,1730676638187,-150.0,0.0002971,2]
[341219991,1730676638196,-150.0,0.00029711,2]
[341219992,1730676638206,-150.0,0.00029713,2]
[341219993,1730676638215,-150.0,0.00029716,2]
[341219994,1730676638224,-245000.0,0.00029719,2]
[341219995,1730676638232,-150.0,0.00029722,2]
[341219996,1730676638241,-150.0,0.00029726,2]
[341219997,1730676638250,-150.0,0.00029729,2]
[341219998,1730676638259,-150.0,0.00029729,2]
[341219999,1730676638268,-150.0,0.00029732,2]
[341220000,1730676638277,-150.0,0.00029737,2]
[341220001,1730676638286,-150.0,0.00029742,2]
[341220002,1730676638296,-150.0,0.00029745,2]
[341220003,1730676638305,-150.0,0.00029746,2]
[341220004,1730676638314,-150.0,0.00029756,2]
[341220005,1730676638324,-150.0,0.00029756,2]
[341220006,1730676638333,-150.0,0.00029764,2]
[341220007,1730676638342,-150.0,0.00029764,2]
[341220008,1730676638351,-150.0,0.00029766,2]
[341220009,1730676638360,-150.0,0.00029766,2]
[341220010,1730676638369,-150.0,0.00029769,2]
[341220011,1730676638379,-150.0,0.0002977,2]
[341220012,1730676638388,-150.0,0.00029773,2]
[341220013,1730676638397,-150.0,0.00029781,2]
[341220014,1730676638406,-150.0,0.00029785,2]
[341220015,1730676638415,-150.0,0.00029788,2]
[341220016,1730676638424,-150.0,0.00029788,2]
[341220017,1730676638433,-150.0,0.00029789,2]
[341220018,1730676638442,-150.0,0.00029792,2]
[341220019,1730676638453,-150.0,0.00029793,2]
[341220020,1730676638462,-150.0,0.00029793,2]
[341220021,1730676638471,-150.0,0.00029795,2]
[341220022,1730676638480,-150.0,0.00029796,2]
[341220024,1730676638489,-150.0,0.00029802,2]
[341220025,1730676638499,-150.0,0.00029806,2]
[341220026,1730676638508,-150.0,0.00029807,2]
[341220027,1730676638517,-150.0,0.00029812,2]
[341220028,1730676638528,-150.0,0.00029819,2]
[341220029,1730676638538,-150.0,0.00029822,2]
[341220030,1730676638547,-150.0,0.00029823,2]
[341220031,1730676638557,-150.0,0.00029824,2]
[341220032,1730676638565,-150.0,0.00029826,2]
[341220033,1730676638575,-150.0,0.00029826,2]
[341220034,1730676638583,-150.0,0.00029829,2]
[341220035,1730676638592,-150.0,0.00029833,2]
[341220036,1730676638601,-150.0,0.00029834,2]
[341220037,1730676638610,-150.0,0.00029835,2]
[341220038,1730676638620,-150.0,0.00029837,2]
[341220039,1730676638630,-150.0,0.00029841,2]
[341220040,1730676638639,-150.0,0.00029842,2]
[341220041,1730676638647,-150.0,0.00029851,2]
[341220042,1730676638658,-150.0,0.00029857,2]
[341220043,1730676638668,-150.0,0.00029858,2]
[341220044,1730676638678,-150.0,0.00029858,2]
[341220045,1730676638687,-150.0,0.00029862,2]
[341220046,1730676638697,-150.0,0.00029865,2]
[341220047,1730676638707,-150.0,0.00029866,2]
[341220048,1730676638718,-150.0,0.00029868,2]
[341220049,1730676638728,-150.0,0.00029869,2]
[341220050,1730676638738,-150.0,0.00029871,2]
[341220051,1730676638749,-150.0,0.00029873,2]
[341220052,1730676638758,-150.0,0.00029873,2]
[341220053,1730676638769,-150.0,0.00029877,2]
[341220054,1730676638779,-150.0,0.00029877,2]
[341220055,1730676638788,-150.0,0.00029878,2]
[341220056,1730676638802,-150.0,0.00029879,2]
[341220057,1730676638812,-150.0,0.00029881,2]
[341220058,1730676638822,-150.0,0.00029884,2]
[341220059,1730676638831,-150.0,0.00029884,2]
[341220060,1730676638840,-150.0,0.0002989,2]
[341220061,1730676638851,-150.0,0.00029895,2]
[341220062,1730676638860,-220.0,0.000299,2]
[341220063,1730676638870,-737.9506,0.000299,2]
[341220064,1730676638879,-500.0,0.000299,2]
[341220065,1730676638888,-168.0,0.000299,2]
[341220066,1730676638898,-150.0,0.00029906,2]
[341220067,1730676638907,-150.0,0.00029912,2]
[341220068,1730676638916,-150.0,0.00029921,2]
[341220069,1730676638925,-150.0,0.00029934,2]
[341220070,1730676638935,-1215.71279228,0.00029935,2]
[341220071,1730676638944,-150.0,0.00029941,2]